fUST/lending_fUST_20250819
["ID","MTS","AMOUNT","RATE_DAILY","PERIOD"]
[380113499,1755549057094,-480.0,0.00020821,2]
[380113500,1755549057103,-547.29,0.00020821,2]
[380113501,1755549057112,-206.38115371,0.00020821,2]
[380113502,1755549057121,-2307.81,0.00020821,2]
[380113503,1755549057130,-480.0,0.00020821,2]
[380113504,1755549057139,-480.0,0.00020821,2]
[380113505,1755549057148,-975.87,0.00020821,2]
[380113506,1755549057159,-480.0,0.00020821,2]
[380113507,1755549057169,-153.5,0.00020821,2]
[380113508,1755549057178,-579.91,0.00020821,2]
[380113509,1755549057187,-480.0,0.00020821,2]
[380113510,1755549057196,-983.25,0.00020821,2]
[380113511,1755549057205,-184.24774284,0.00020821,2]
[380113512,1755549057215,-188.1377635,0.00020821,2]
[380113513,1755549057971,-291.8622365,0.00020821,2]
[380113514,1755549057989,-151.07642,0.00020821,2]
[380113515,1755549058003,-480.0,0.00020821,2]
[380113516,1755549058019,-468.8513435,0.00020821,2]
[380113517,1755549058042,-11.1486565,0.00020821,2]
[380113518,1755549058060,-213.235151,0.00020821,2]
[380113519,1755549058075,-213.235151,0.00020821,2]
[380113520,1755549058089,-480.0,0.00020821,2]
[380113521,1755549058105,-480.0,0.00020821,2]
[380113522,1755549058119,-480.0,0.00020821,2]
[380113523,1755549058133,-1116.2,0.00020821,2]
[380113524,1755549058146,-1756.558331,0.00020821,2]
[380113525,1755549058162,-508.63,0.00020821,2]
[380113526,1755549058176,-151.0,0.00020821,2]
[380113527,1755549058189,-1756.558331,0.00020821,2]
[380113528,1755549058203,-604.86,0.00020821,2]
[380113529,1755549058218,-273.019459,0.00020821,2]
[380113530,1755549058232,-480.0,0.00020821,2]
[380113531,1755549058246,-273.019459,0.00020821,2]
[380113532,1755549058260,-480.0,0.00020821,2]
[380113533,1755549058275,-460.0,0.00020821,2]
[380113534,1755549058288,-151.0,0.00020821,2]
[380113535,1755549058303,-151.0,0.00020821,2]
[380113536,1755549058317,-151.0,0.00020821,2]
[380113537,1755549058330,-480.0,0.00020821,2]
[380113538,1755549058339,-151.0,0.00020821,2]
[380113539,1755549058349,-480.0,0.00020821,2]
[380113540,1755549058359,-151.0,0.00020821,2]
[380113541,1755549058368,-440.0,0.00020821,2]
[380113542,1755549058378,-151.0,0.00020821,2]
[380113543,1755549058388,-480.0,0.00020821,2]
[380113544,1755549058397,-480.0,0.00020821,2]
[380113545,1755549058407,-151.0,0.00020821,2]
[380113546,1755549058416,-151.0,0.00020821,2]
[380113547,1755549058426,-151.0,0.00020821,2]
[380113548,1755549058435,-1719.49,0.00020821,2]
[380113549,1755549058444,-151.0,0.00020821,2]
[380113550,1755549058454,-480.0,0.00020821,2]
[380113551,1755549058475,-480.0,0.00020821,2]
[380113552,1755549058493,-151.0,0.00020821,2]
[380113553,1755549058512,-701.96,0.00020821,2]
[380113554,1755549058528,-480.0,0.00020821,2]
[380113555,1755549058538,-480.0,0.00020821,2]
[380113556,1755549058549,-480.0,0.00020821,2]
[380113557,1755549058560,-1500.0,0.00020868,2]
[380113558,1755549058571,-1942.28339133,0.00021,5]
[380113559,1755549058581,-1205.26409376,0.00021,2]
[380113560,1755549058771,-203.11555608,0.00021,2]
[380113561,1755549058788,-150.0,0.00021075,2]
[380113562,1755549058798,-49.42242033,0.00021095,2]
[380113563,1755549058810,-430.57757967,0.00021095,2]
[380113564,1755549058820,-480.0,0.00021095,2]
[380113565,1755549058829,-235.59721851,0.00021095,2]
[380113566,1755549059051,-14175.21801506,0.00018978,2]
[380113567,1755549059061,-480.0,0.00019178,2]
[380113568,1755549059070,-480.0,0.00020547,2]
[380113569,1755549059079,-480.0,0.00020821,2]
[380113570,1755549059088,-151.0,0.00020821,2]
[380113571,1755549059098,-244.40278149,0.00021095,2]
[380113572,1755549059107,-480.0,0.00021095,2]
[380113573,1755549059116,-480.0,0.00021095,2]
[380113574,1755549059125,-184.83242278,0.00021095,2]
[380113575,1755549059134,-480.0,0.00021095,2]
[380113576,1755549059144,-480.0,0.00021095,2]
[380113577,1755549059152,-480.0,0.00021095,2]
[380113578,1755549059166,-480.0,0.00021095,2]
[380113579,1755549059175,-480.0,0.00021095,2]
[380113580,1755549059184,-550.31,0.00021095,2]
[380113581,1755549059193,-280.14,0.00021095,2]
[380113582,1755549059203,-208.38,0.00021095,2]
[380113583,1755549059212,-480.0,0.00021095,2]
[380113584,1755549059221,-480.0,0.00021095,2]
[380113585,1755549059232,-2519.6,0.00021095,2]
[380113586,1755549059241,-365.19,0.00021095,2]
[380113587,1755549059252,-480.0,0.00021095,2]
[380113588,1755549059263,-480.0,0.00021095,2]
[380113589,1755549059272,-694.48,0.00021095,2]
[380113590,1755549059281,-480.0,0.00021095,2]
[380113591,1755549059290,-553.82,0.00021095,2]
[380113592,1755549059299,-480.0,0.00021095,2]
[380113593,1755549059310,-480.0,0.00021095,2]
[380113594,1755549059319,-480.0,0.00021095,2]
[380113595,1755549059330,-480.0,0.00021095,2]
[380113596,1755549059339,-697.94,0.00021095,2]
[380113597,1755549059349,-202.65,0.00021095,2]
[380113598,1755549059358,-681.63,0.00021095,2]
[380113599,1755549059367,-480.0,0.00021095,2]
[380113600,1755549059376,-480.0,0.00021095,2]
[380113601,1755549059386,-547.29,0.00021095,2]
[380113602,1755549059395,-2307.81,0.00021095,2]
[380113603,1755549059404,-480.0,0.00021095,2]
[380113604,1755549059413,-480.0,0.00021095,2]
[380113605,1755549059423,-975.87,0.00021095,2]
[380113606,1755549059432,-480.0,0.00021095,2]
[380113607,1755549059441,-579.91,0.00021095,2]
[380113608,1755549059451,-480.0,0.00021095,2]
[380113609,1755549059461,-983.25,0.00021095,2]
[380113610,1755549059470,-480.0,0.00021095,2]
[380113611,1755549059479,-480.0,0.00021095,2]
[380113612,1755549059488,-276.71,0.00021095,2]
[380113613,1755549059498,-480.0,0.00021095,2]
[380113614,1755549059507,-480.0,0.00021095,2]
[380113615,1755549059517,-480.0,0.00021095,2]
[380113616,1755549059526,-1116.2,0.00021095,2]
[380113617,1755549059535,-508.63,0.00021095,2]
[380113618,1755549059545,-604.86,0.00021095,2]
[380113619,1755549059554,-480.0,0.00021095,2]
[380113620,1755549059563,-480.0,0.00021095,2]
[380113621,1755549059572,-480.0,0.00021095,2]
[380113622,1755549059582,-480.0,0.00021095,2]
[380113623,1755549059591,-480.0,0.00021095,2]
[380113624,1755549059601,-1081.87678067,0.00021095,2]
[380113625,1755549059666,-480.0,0.00019178,2]
[380113626,1755549059675,-480.0,0.00019452,2]
[380113627,1755549059685,-637.61321933,0.00021095,2]
[380113628,1755549059694,-480.0,0.00021095,2]
[380113629,1755549059704,-480.0,0.00021095,2]
[380113630,1755549059713,-480.0,0.00021095,2]
[380113631,1755549059722,-480.0,0.00021095,2]
[380113632,1755549059731,-480.0,0.00021095,2]
[380113633,1755549059740,-480.0,0.00021095,2]
[380113634,1755549059749,-500.0,0.0002112,2]
[380113635,1755549059759,-2967.29054176,0.00021147,2]
[380113636,1755549059768,-160.0,0.00021233,2]
[380113637,1755549059777,-622.49,0.00021369,2]
[380113638,1755549059787,-216.72367854,0.00021369,2]
[380113639,1755549059796,-480.0,0.00021369,2]
[380113640,1755549059805,-480.0,0.00021369,2]
[380113641,1755549059814,-480.0,0.00021369,2]
[380113642,1755549059823,-480.0,0.00021369,2]
[380113643,1755549059832,-480.0,0.00021369,2]
[380113644,1755549059841,-480.0,0.00021369,2]
[380113645,1755549059849,-238.41,0.00021369,2]
[380113646,1755549059858,-480.0,0.00021369,2]
[380113647,1755549059867,-480.0,0.00021369,2]
[380113648,1755549059876,-480.0,0.00021369,2]
[380113649,1755549059886,-151.0,0.00021369,2]
[380113650,1755549059895,-2519.6,0.00021369,2]
[380113651,1755549059904,-151.0,0.00021369,2]
[380113652,1755549059914,-173.629961,0.00021369,2]
[380113653,1755549059923,-480.0,0.00021369,2]
[380113654,1755549059933,-480.0,0.00021369,2]
[380113655,1755549059942,-152.589823,0.00021369,2]
[380113656,1755549059951,-694.48,0.00021369,2]
[380113657,1755549059962,-428.505256,0.00021369,2]
[380113658,1755549059982,-151.0,0.00021369,2]
[380113659,1755549059992,-480.0,0.00021369,2]
[380113660,1755549060001,-428.505256,0.00021369,2]
[380113661,1755549060011,-151.0,0.00021369,2]
[380113662,1755549060021,-415.952593,0.00021369,2]
[380113663,1755549060030,-553.82,0.00021369,2]
[380113664,1755549060040,-415.952593,0.00021369,2]
[380113665,1755549060049,-480.0,0.00021369,2]
[380113666,1755549060059,-480.0,0.00021369,2]
[380113667,1755549060068,-151.0,0.00021369,2]
[380113668,1755549060078,-480.0,0.00021369,2]
[380113669,1755549060087,-151.0,0.00021369,2]
[380113670,1755549060097,-480.0,0.00021369,2]
[380113671,1755549060106,-697.94,0.00021369,2]
[380113672,1755549060116,-681.63,0.00021369,2]
[380113673,1755549060125,-151.0,0.00021369,2]
[380113674,1755549060137,-151.0,0.00021369,2]
[380113675,1755549060147,-151.0,0.00021369,2]
[380113676,1755549060159,-151.0,0.00021369,2]
[380113677,1755549060168,-441.20310314,0.00021369,2]
[380113678,1755549060178,-151.0,0.00021369,2]
[380113679,1755549060187,-151.0,0.00021369,2]
[380113680,1755549060196,-480.0,0.00021369,2]
[380113681,1755549060206,-547.29,0.00021369,2]
[380113682,1755549060216,-151.0,0.00021369,2]
[380113683,1755549060226,-2307.81,0.00021369,2]
[380113684,1755549060236,-369.59,0.00021369,2]
[380113685,1755549060247,-151.0,0.00021369,2]
[380113686,1755549060256,-297.197483,0.00021369,2]
[380113687,1755549060267,-151.0,0.00021369,2]
[380113688,1755549060277,-480.0,0.00021369,2]
[380113689,1755549060287,-975.87,0.00021369,2]
[380113690,1755549060297,-480.0,0.00021369,2]
[380113691,1755549060306,-297.197483,0.00021369,2]
[380113692,1755549060315,-579.91,0.00021369,2]
[380113693,1755549060324,-151.0,0.00021369,2]
[380113694,1755549060334,-455.359378,0.00021369,2]
[380113695,1755549060343,-480.0,0.00021369,2]
[380113696,1755549060353,-455.359378,0.00021369,2]
[380113697,1755549060363,-983.25,0.00021369,2]
[380113698,1755549060372,-480.0,0.00021369,2]
[380113699,1755549060381,-151.0,0.00021369,2]
[380113700,1755549060391,-151.0,0.00021369,2]
[380113701,1755549060400,-151.0,0.00021369,2]
[380113702,1755549060410,-480.0,0.00021369,2]
[380113703,1755549060419,-491.72,0.00021369,2]
[380113704,1755549060428,-480.0,0.00021369,2]
[380113705,1755549060438,-480.0,0.00021369,2]
[380113706,1755549060447,-1116.2,0.00021369,2]
[380113707,1755549060456,-508.63,0.00021369,2]
[380113708,1755549060466,-604.86,0.00021369,2]
[380113709,1755549060475,-175.81055902,0.00021369,2]
[380113710,1755549060484,-460.0,0.00021369,2]
[380113711,1755549060494,-480.0,0.00021369,2]
[380113712,1755549060503,-480.0,0.00021369,2]
[380113713,1755549060515,-1719.49,0.00021369,2]
[380113714,1755549060524,-424.06,0.00021369,2]
[380113715,1755549060534,-480.0,0.00021369,2]
[380113716,1755549060544,-480.0,0.00021369,2]
[380113717,1755549060553,-480.0,0.00021369,2]
[380113718,1755549060563,-480.0,0.00021369,2]
[380113719,1755549060572,-480.0,0.00021369,2]
[380113720,1755549060581,-720.0,0.00021404,20]
[380113721,1755549060590,-2000.0,0.00021416,2]
[380113722,1755549060600,-5000.0,0.00021561,2]
[380113723,1755549060609,-2967.29054176,0.00021562,2]
[380113724,1755549060618,-487.57,0.00021643,2]
[380113725,1755549060627,-480.0,0.00021643,2]
[380113726,1755549060638,-325.6,0.00021643,2]
[380113727,1755549060647,-480.0,0.00021643,2]
[380113728,1755549060656,-480.0,0.00021643,2]
[380113729,1755549060666,-480.0,0.00021643,2]
[380113730,1755549060675,-151.0,0.00021643,2]
[380113731,1755549060684,-480.0,0.00021643,2]
[380113732,1755549060693,-151.0,0.00021643,2]
[380113733,1755549060701,-151.0,0.00021643,2]
[380113734,1755549060710,-151.0,0.00021643,2]
[380113735,1755549060719,-151.0,0.00021643,2]
[380113736,1755549060728,-151.0,0.00021643,2]
[380113737,1755549060737,-151.0,0.00021643,2]
[380113738,1755549060746,-1268.596536,0.00021643,2]
[380113739,1755549060755,-1268.596536,0.00021643,2]
[380113740,1755549060765,-480.0,0.00021643,2]
[380113741,1755549060774,-480.0,0.00021643,2]
[380113742,1755549060782,-2519.6,0.00021643,2]
[380113743,1755549060791,-493.9,0.00021643,2]
[380113744,1755549060800,-480.0,0.00021643,2]
[380113745,1755549060809,-694.48,0.00021643,2]
[380113746,1755549060818,-480.0,0.00021643,2]
[380113747,1755549060828,-553.82,0.00021643,2]
[380113748,1755549060837,-480.0,0.00021643,2]
[380113749,1755549060847,-480.0,0.00021643,2]
[380113750,1755549060857,-480.0,0.00021643,2]
[380113751,1755549060866,-480.0,0.00021643,2]
[380113752,1755549060875,-697.94,0.00021643,2]
[380113753,1755549060885,-681.63,0.00021643,2]
[380113754,1755549060894,-480.0,0.00021643,2]
[380113755,1755549060904,-547.29,0.00021643,2]
[380113756,1755549060913,-2307.81,0.00021643,2]
[380113757,1755549060923,-480.0,0.00021643,2]
[380113758,1755549060932,-975.87,0.00021643,2]
[380113759,1755549060942,-480.0,0.00021643,2]
[380113760,1755549060951,-579.91,0.00021643,2]
[380113761,1755549060961,-480.0,0.00021643,2]
[380113762,1755549060971,-983.25,0.00021643,2]
[380113763,1755549060980,-480.0,0.00021643,2]
[380113764,1755549060990,-480.0,0.00021643,2]
[380113765,1755549060999,-373.47,0.00021643,2]
[380113766,1755549061008,-480.0,0.00021643,2]
[380113767,1755549061020,-1116.2,0.00021643,2]
[380113768,1755549061029,-508.63,0.00021643,2]
[380113769,1755549061038,-604.86,0.00021643,2]
[380113770,1755549061047,-480.0,0.00021643,2]
[380113771,1755549061056,-480.0,0.00021643,2]
[380113772,1755549061065,-1719.49,0.00021643,2]
[380113773,1755549061074,-586.53394444,0.00021643,2]
[380113774,1755549061083,-480.0,0.00021643,2]
[380113775,1755549061091,-480.0,0.00021643,2]
[380113776,1755549061100,-480.0,0.00021643,2]
[380113777,1755549061109,-480.0,0.00021643,2]
[380113778,1755549061119,-260.0,0.00021781,2]
[380113779,1755549061128,-480.0,0.00021917,2]
[380113780,1755549061138,-480.0,0.00021917,2]
[380113781,1755549061147,-151.0,0.00021917,2]
[380113782,1755549061156,-277.510548,0.00021917,2]
[380113783,1755549061170,-277.510548,0.00021917,2]
[380113784,1755549061179,-480.0,0.00021917,2]
[380113785,1755549061188,-183.342896,0.00021917,2]
[380113786,1755549061197,-238.315502,0.00021917,2]
[380113787,1755549061208,-183.342896,0.00021917,2]
[380113788,1755549061218,-238.315502,0.00021917,2]
[380113789,1755549061226,-480.0,0.00021917,2]
[380113790,1755549061236,-151.0,0.00021917,2]
[380113791,1755549061245,-151.0,0.00021917,2]
[380113792,1755549061255,-151.0,0.00021917,2]
[380113793,1755549061266,-151.0,0.00021917,2]
[380113794,1755549061275,-151.0,0.00021917,2]
[380113795,1755549061284,-480.0,0.00021917,2]
[380113796,1755549061293,-151.0,0.00021917,2]
[380113797,1755549061303,-151.0,0.00021917,2]
[380113798,1755549061312,-480.0,0.00021917,2]
[380113799,1755549061322,-480.0,0.00021917,2]
[380113800,1755549061331,-2519.6,0.00021917,2]
[380113801,1755549061341,-480.0,0.00021917,2]
[380113802,1755549061350,-694.48,0.00021917,2]
[380113803,1755549061359,-480.0,0.00021917,2]
[380113804,1755549061368,-553.82,0.00021917,2]
[380113805,1755549061377,-480.0,0.00021917,2]
[380113806,1755549061386,-480.0,0.00021917,2]
[380113807,1755549061396,-480.0,0.00021917,2]
[380113808,1755549061405,-480.0,0.00021917,2]
[380113809,1755549061414,-697.94,0.00021917,2]
[380113810,1755549061423,-681.63,0.00021917,2]
[380113811,1755549061530,-556.77,0.00021917,2]
[380113812,1755549061539,-547.29,0.00021917,2]
[380113813,1755549061549,-2307.81,0.00021917,2]
[380113814,1755549061558,-480.0,0.00021917,2]
[380113815,1755549061568,-480.0,0.00021917,2]
[380113816,1755549061577,-975.87,0.00021917,2]
[380113817,1755549061586,-579.91,0.00021917,2]
[380113818,1755549061595,-480.0,0.00021917,2]
[380113819,1755549061604,-983.25,0.00021917,2]
[380113820,1755549061613,-480.0,0.00021917,2]
[380113821,1755549061622,-480.0,0.00021917,2]
[380113822,1755549061631,-480.0,0.00021917,2]
[380113823,1755549061641,-1116.2,0.00021917,2]
[380113824,1755549061650,-508.63,0.00021917,2]
[380113825,1755549061660,-604.86,0.00021917,2]
[380113826,1755549061669,-480.0,0.00021917,2]
[380113827,1755549061678,-480.0,0.00021917,2]
[380113828,1755549061687,-1719.49,0.00021917,2]
[380113829,1755549061696,-480.0,0.00021917,2]
[380113830,1755549061706,-480.0,0.00021917,2]
[380113831,1755549061715,-480.0,0.00021917,2]
[380113832,1755549061726,-480.0,0.00021917,2]
[380113833,1755549061735,-150.0,0.00021918,2]
[380113834,1755549061745,-8156.34295978,0.00021939,2]
[380113835,1755549061754,-2500.0,0.00021964,2]
[380113836,1755549061763,-2967.29054176,0.00021978,2]
[380113837,1755549061772,-4148.72,0.00022,7]
[380113838,1755549061782,-547.32,0.00022,7]
[380113839,1755549061791,-1384.98,0.00022,7]
[380113840,1755549061800,-9995.27,0.00022,2]
[380113841,1755549061809,-251.86,0.00022069,2]
[380113842,1755549061818,-480.0,0.00022191,2]
[380113843,1755549061828,-470.833735,0.00022191,7]
[380113844,1755549061837,-480.0,0.00022191,2]
[380113845,1755549061846,-470.833735,0.00022191,7]
[380113846,1755549061856,-250.136176,0.00022191,7]
[380113847,1755549061865,-151.0,0.00022191,7]
[380113848,1755549061874,-250.136176,0.00022191,7]
[380113849,1755549061883,-151.0,0.00022191,7]
[380113850,1755549061892,-151.0,0.00022191,7]
[380113851,1755549061902,-151.0,0.00022191,7]
[380113852,1755549061911,-480.0,0.00022191,2]
[380113853,1755549061922,-480.0,0.00022191,2]
[380113854,1755549061933,-480.0,0.00022191,2]
[380113855,1755549061943,-480.0,0.00022191,2]
[380113856,1755549061953,-480.0,0.00022191,2]
[380113857,1755549061963,-2519.6,0.00022191,2]
[380113858,1755549061974,-480.0,0.00022191,2]
[380113859,1755549061983,-694.48,0.00022191,2]
[380113860,1755549061993,-480.0,0.00022191,2]
[380113861,1755549062003,-553.82,0.00022191,2]
[380113862,1755549062013,-480.0,0.00022191,2]
[380113863,1755549062023,-480.0,0.00022191,2]
[380113864,1755549062033,-480.0,0.00022191,2]
[380113865,1755549062043,-480.0,0.00022191,2]
[380113866,1755549062052,-697.94,0.00022191,2]
[380113867,1755549062061,-681.63,0.00022191,2]
[380113868,1755549062071,-547.29,0.00022191,2]
[380113869,1755549062080,-2307.81,0.00022191,2]
[380113870,1755549062089,-480.0,0.00022191,2]
[380113871,1755549062098,-480.0,0.00022191,2]
[380113872,1755549062108,-975.87,0.00022191,2]
[380113873,1755549062117,-579.91,0.00022191,2]
[380113874,1755549062127,-480.0,0.00022191,2]
[380113875,1755549062135,-983.25,0.00022191,2]
[380113876,1755549062144,-480.0,0.00022191,2]
[380113877,1755549062154,-480.0,0.00022191,2]
[380113878,1755549062168,-480.0,0.00022191,2]
[380113879,1755549062178,-1116.2,0.00022191,2]
[380113880,1755549062187,-508.63,0.00022191,2]
[380113881,1755549062196,-604.86,0.00022191,2]
[380113882,1755549062206,-480.0,0.00022191,2]
[380113883,1755549062216,-480.0,0.00022191,2]
[380113884,1755549062225,-1719.49,0.00022191,2]
[380113885,1755549062236,-480.0,0.00022191,2]
[380113886,1755549062246,-480.0,0.00022191,2]
[380113887,1755549062255,-480.0,0.00022191,2]
[380113888,1755549062264,-480.0,0.00022191,2]
[380113889,1755549062274,-361.941,0.00022199,2]
[380113890,1755549062282,-360.0,0.00022329,2]
[380113891,1755549062292,-2967.29054176,0.00022394,2]
[380113892,1755549062301,-359.13419496,0.00022465,2]
[380113893,1755549062310,-152.064425,0.00022465,7]
[380113894,1755549062319,-151.0,0.00022465,7]
[380113895,1755549062329,-151.0,0.00022465,7]
[380113896,1755549062338,-151.0,0.00022465,7]
[380113897,1755549062347,-151.0,0.00022465,7]
[380113898,1755549062357,-153.549071,0.00022465,7]
[380113899,1755549062365,-151.0,0.00022465,7]
[380113900,1755549062375,-151.0,0.00022465,7]
[380113901,1755549062384,-480.0,0.00022465,2]
[380113902,1755549062393,-480.0,0.00022465,2]
[380113903,1755549062402,-480.0,0.00022465,2]
[380113904,1755549062411,-568.56,0.00022465,2]
[380113905,1755549062420,-480.0,0.00022465,2]
[380113906,1755549062429,-480.0,0.00022465,2]
[380113907,1755549062438,-2519.6,0.00022465,2]
[380113908,1755549062447,-480.0,0.00022465,2]
[380113909,1755549062456,-694.48,0.00022465,2]
[380113910,1755549062465,-480.0,0.00022465,2]
[380113911,1755549062474,-553.82,0.00022465,2]
[380113912,1755549062483,-480.0,0.00022465,2]
[380113913,1755549062492,-480.0,0.00022465,2]
[380113914,1755549062501,-480.0,0.00022465,2]
[380113915,1755549062510,-480.0,0.00022465,2]
[380113916,1755549062520,-697.94,0.00022465,2]
[380113917,1755549062529,-681.63,0.00022465,2]
[380113918,1755549062538,-547.29,0.00022465,2]
[380113919,1755549062548,-2307.81,0.00022465,2]
[380113920,1755549062558,-480.0,0.00022465,2]
[380113921,1755549062567,-480.0,0.00022465,2]
[380113922,1755549062577,-975.87,0.00022465,2]
[380113923,1755549062586,-579.91,0.00022465,2]
[380113924,1755549062595,-480.0,0.00022465,2]
[380113925,1755549062605,-983.25,0.00022465,2]
[380113926,1755549062614,-480.0,0.00022465,2]
[380113927,1755549062624,-480.0,0.00022465,2]
[380113928,1755549062633,-480.0,0.00022465,2]
[380113929,1755549062642,-1116.2,0.00022465,2]
[380113930,1755549062652,-508.63,0.00022465,2]
[380113931,1755549062661,-604.86,0.00022465,2]
[380113932,1755549062670,-480.0,0.00022465,2]
[380113933,1755549062679,-480.0,0.00022465,2]
[380113934,1755549062688,-1719.49,0.00022465,2]
[380113935,1755549062697,-480.0,0.00022465,2]
[380113936,1755549062707,-480.0,0.00022465,2]
[380113937,1755549062716,-480.0,0.00022465,2]
[380113938,1755549062725,-480.0,0.00022465,2]
[380113939,1755549062734,-342.70323021,0.00022466,2]
[380113940,1755549062743,-3000.0,0.00022512,2]
[380113941,1755549062752,-587.0,0.00022573,2]
[380113942,1755549062761,-151.0,0.00022739,7]
[380113943,1755549062771,-151.0,0.00022739,7]
[380113944,1755549062781,-151.0,0.00022739,7]
[380113945,1755549062790,-480.0,0.00022739,2]
[380113946,1755549062800,-480.0,0.00022739,2]
[380113947,1755549062810,-480.0,0.00022739,2]
[380113948,1755549062820,-480.0,0.00022739,2]
[380113949,1755549062829,-462.72,0.00022739,2]
[380113950,1755549062838,-2519.6,0.00022739,2]
[380113951,1755549062848,-480.0,0.00022739,2]
[380113952,1755549062857,-694.48,0.00022739,2]
[380113953,1755549062867,-480.0,0.00022739,2]
[380113954,1755549062877,-553.82,0.00022739,2]
[380113955,1755549062886,-400.19,0.00022739,2]
[380113956,1755549062896,-480.0,0.00022739,2]
[380113957,1755549062905,-213.35,0.00022739,2]
[380113958,1755549062914,-480.0,0.00022739,2]
[380113959,1755549062923,-697.94,0.00022739,2]
[380113960,1755549062932,-12683.78573522,0.00022739,7]
[380113961,1755549062942,-681.63,0.00022739,2]
[380113962,1755549062951,-547.29,0.00022739,2]
[380113963,1755549062960,-2307.81,0.00022739,2]
[380113964,1755549062969,-480.0,0.00022739,2]
[380113965,1755549062978,-229.23564938,0.00022739,2]
[380113966,1755549062987,-975.87,0.00022739,2]
[380113967,1755549062997,-579.91,0.00022739,2]
[380113968,1755549063006,-480.0,0.00022739,2]
[380113969,1755549063015,-983.25,0.00022739,2]
[380113970,1755549063024,-480.0,0.00022739,2]
[380113971,1755549063033,-480.0,0.00022739,2]
[380113972,1755549063044,-213.235151,0.00022739,7]
[380113973,1755549063054,-213.235151,0.00022739,7]
[380113974,1755549063064,-480.0,0.00022739,2]
[380113975,1755549063075,-1756.558331,0.00022739,7]
[380113976,1755549063084,-1116.2,0.00022739,2]
[380113977,1755549063094,-151.0,0.00022739,7]
[380113978,1755549063103,-1756.558331,0.00022739,7]
[380113979,1755549063113,-508.63,0.00022739,2]
[380113980,1755549063122,-273.019459,0.00022739,7]
[380113981,1755549063131,-604.86,0.00022739,2]
[380113982,1755549063142,-273.019459,0.00022739,7]
[380113983,1755549063153,-151.0,0.00022739,7]
[380113984,1755549063165,-151.0,0.00022739,7]
[380113985,1755549063174,-151.0,0.00022739,7]
[380113986,1755549063183,-509.23,0.00022739,2]
[380113987,1755549063193,-480.0,0.00022739,2]
[380113988,1755549063205,-151.0,0.00022739,7]
[380113989,1755549063215,-151.817891,0.00022739,7]
[380113990,1755549063224,-151.0,0.00022739,7]
[380113991,1755549063235,-1719.49,0.00022739,2]
[380113992,1755549063245,-299.766118,0.00022739,7]
[380113993,1755549063254,-480.0,0.00022739,2]
[380113994,1755549063264,-480.0,0.00022739,2]
[380113995,1755549063275,-480.0,0.00022739,2]
[380113996,1755549063284,-151.0,0.00022739,7]
[380113997,1755549063295,-480.0,0.00022739,2]
[380113998,1755549063305,-2967.29054176,0.00022809,2]